[Event "Grandmaster Tournament Blitz"]
[Site "Biel/Bienne, Switzerland"]
[Date "2019.07.27"]
[Round "7.1"]
[White "Abdusattorov, Nodirbek"]
[Black "Shankland, Sam"]
[Result "0-1"]
[ECO "D12"]
[WhiteElo "2550"]
[BlackElo "2660"]
[PlyCount "74"]
[EventDate "2019.??.??"]
[EventType "blitz"]
[TimeControl "3+2"]
[WhiteClock "0:00:05"]
[BlackClock "0:00:36"]

1. d4 {[%emt 0:00:00]} d5 {[%emt 0:00:00]} 2. Nf3 {[%emt 0:00:00]} Nf6 {
[%emt 0:00:00]} 3. c4 {[%emt 0:00:00]} c6 {[%emt 0:00:00]} 4. e3 {[%emt 0:00:
00]} Bf5 {[%emt 0:00:00]} 5. Nc3 {[%emt 0:00:00]} e6 {[%emt 0:00:00]} 6. Bd3 {
[%emt 0:00:00]} Bxd3 {[%emt 0:00:00]} 7. Qxd3 {[%emt 0:00:00]} Bb4 {[%emt 0:00:
00]} 8. Bd2 {[%emt 0:00:00]} O-O {[%emt 0:00:00]} 9. O-O {[%emt 0:00:00]} Ba5 {
[%emt 0:00:00]} 10. b3 {[%emt 0:00:00]} Nbd7 {[%emt 0:00:00]} 11. Rfe1 {
[%emt 0:00:00]} Re8 {[%emt 0:00:00]} 12. a3 {[%emt 0:00:00]} h6 {[%emt 0:00:00]
} 13. b4 {[%emt 0:00:00]} Bc7 {[%emt 0:00:00]} 14. e4 {[%emt 0:00:00]} Nb6 {
[%emt 0:00:00]} 15. cxd5 {[%emt 0:00:00]} cxd5 {[%emt 0:00:00]} 16. e5 {
[%emt 0:00:00]} Nfd7 {[%emt 0:00:00]} 17. Rec1 {[%emt 0:00:00]} Nc4 {[%emt 0:
00:00]} 18. Be1 {[%emt 0:00:00]} Rc8 {[%emt 0:00:00]} 19. a4 {[%emt 0:00:00]}
f6 {[%emt 0:00:00]} 20. exf6 {[%emt 0:00:00]} Qxf6 {[%emt 0:00:00]} 21. Nd2 {
[%emt 0:00:00]} Bf4 {[%emt 0:00:00]} 22. Rc2 {[%emt 0:00:00]} Nxd2 {[%emt 0:00:
00]} 23. Bxd2 {[%emt 0:00:00]} Rc4 {[%emt 0:00:00]} 24. Ne2 {[%emt 0:00:00]}
Rec8 {[%emt 0:00:00]} 25. Rac1 {[%emt 0:00:00]} Bxd2 {[%emt 0:00:00]} 26. Qxd2
{[%emt 0:00:00]} Nb6 {[%emt 0:00:00]} 27. Rxc4 {[%emt 0:00:00]} dxc4 {[%emt 0:
00:00]} 28. Nc3 {[%emt 0:00:00]} Nd5 {[%emt 0:00:00]} 29. Ne4 {[%emt 0:00:00]}
Qe7 {[%emt 0:00:00]} 30. b5 {[%emt 0:00:02]} Qa3 {[%emt 0:00:00]} 31. Nc5 {
[%emt 0:00:07]} b6 {[%emt 0:00:00]} 32. Qe1 {[%emt 0:00:11]} Kh8 {[%emt 0:00:
04]} 33. Ra1 {[%emt 0:00:06]} Qc3 {[%emt 0:00:19]} 34. Ne4 {[%emt 0:00:16]}
Qxe1+ 35. Rxe1 {[%emt 0:00:01]} c3 {[%emt 0:00:05]} 36. Ng3 {[%emt 0:00:18]}
Nf4 {[%emt 0:00:16]} 37. Ne4 {[%emt 0:00:16]} c2 {[%emt 0:00:02]} 0-1

[Event "Grandmaster Tournament Blitz"]
[Site "Biel/Bienne, Switzerland"]
[Date "2019.07.27"]
[Round "7.2"]
[White "Maghsoodloo, Parham"]
[Black "Georgiadis, Nico"]
[Result "1-0"]
[ECO "A96"]
[WhiteElo "2719"]
[BlackElo "2464"]
[PlyCount "127"]
[EventDate "2019.??.??"]
[EventType "blitz"]
[TimeControl "3+2"]
[WhiteClock "0:00:18"]
[BlackClock "0:00:14"]

1. c4 {[%emt 0:00:00]} f5 {[%emt 0:00:00]} 2. b3 {[%emt 0:00:00]} Nf6 {[%emt 0:
00:00]} 3. Bb2 {[%emt 0:00:00]} e6 {[%emt 0:00:00]} 4. g3 {[%emt 0:00:00]} Be7
{[%emt 0:00:00]} 5. Bg2 {[%emt 0:00:00]} d6 {[%emt 0:00:00]} 6. d4 {[%emt 0:00:
00]} O-O {[%emt 0:00:00]} 7. Nf3 {[%emt 0:00:00]} Ne4 {[%emt 0:00:00]} 8. O-O {
[%emt 0:00:00]} Bf6 {[%emt 0:00:00]} 9. Nfd2 {[%emt 0:00:00]} Nxd2 {[%emt 0:00:
00]} 10. Qxd2 {[%emt 0:00:00]} Nc6 {[%emt 0:00:00]} 11. d5 {[%emt 0:00:00]}
exd5 {[%emt 0:00:00]} 12. cxd5 {[%emt 0:00:00]} Bxb2 {[%emt 0:00:00]} 13. Qxb2
{[%emt 0:00:00]} Ne5 {[%emt 0:00:00]} 14. e3 {[%emt 0:00:00]} Bd7 {[%emt 0:00:
00]} 15. Nc3 {[%emt 0:00:00]} Qf6 {[%emt 0:00:00]} 16. Qd2 {[%emt 0:00:00]}
Rae8 {[%emt 0:00:00]} 17. h3 {[%emt 0:00:00]} g5 {[%emt 0:00:00]} 18. f4 {
[%emt 0:00:00]} Ng6 {[%emt 0:00:00]} 19. Rae1 {[%emt 0:00:00]} Re7 {[%emt 0:00:
00]} 20. Kh2 {[%emt 0:00:00]} h5 {[%emt 0:00:00]} 21. e4 {[%emt 0:00:00]} gxf4
{[%emt 0:00:00]} 22. gxf4 {[%emt 0:00:00]} Nh4 {[%emt 0:00:14]} 23. Bh1 {
[%emt 0:00:00]} fxe4 {[%emt 0:00:05]} 24. Nxe4 {[%emt 0:00:00]} Qf5 {[%emt 0:
00:01]} 25. Qc3 {[%emt 0:00:00]} Rg7 {[%emt 0:00:08]} 26. Ng5 {[%emt 0:00:02]}
Qf6 {[%emt 0:00:13]} 27. Qxf6 {[%emt 0:00:17]} Rxf6 {[%emt 0:00:01]} 28. Ne6 {
[%emt 0:00:00]} Bxe6 {[%emt 0:00:08]} 29. dxe6 {[%emt 0:00:01]} Re7 {[%emt 0:
00:05]} 30. Bxb7 {[%emt 0:00:02]} Kg7 {[%emt 0:00:00]} 31. Bd5 {[%emt 0:00:04]}
c6 {[%emt 0:00:02]} 32. Bxc6 {[%emt 0:00:01]} Rfxe6 {[%emt 0:00:01]} 33. Rxe6 {
[%emt 0:00:11]} Rxe6 {[%emt 0:00:01]} 34. f5 {[%emt 0:00:01]} Re3 {[%emt 0:00:
02]} 35. f6+ {[%emt 0:00:04]} Kf8 {[%emt 0:00:01]} 36. Bd5 {[%emt 0:00:17]} Re5
{[%emt 0:00:04]} 37. Rd1 {[%emt 0:00:14]} Rf5 {[%emt 0:00:07]} 38. f7 {[%emt 0:
00:03]} Nf3+ {[%emt 0:00:04]} 39. Kg3 {[%emt 0:00:04]} Ne5 {[%emt 0:00:01]} 40.
Be6 {[%emt 0:00:01]} Rf3+ {[%emt 0:00:06]} 41. Kh4 {[%emt 0:00:01]} Rf6 {
[%emt 0:00:01]} 42. Rxd6 {[%emt 0:00:02]} Nxf7 {[%emt 0:00:02]} 43. Ra6 {
[%emt 0:00:01]} Nd8 {[%emt 0:00:02]} 44. Bc4 {[%emt 0:00:00]} Rxa6 {[%emt 0:00:
04]} 45. Bxa6 {[%emt 0:00:01]} Nc6 {[%emt 0:00:01]} 46. Kxh5 {[%emt 0:00:06]}
Nb4 {[%emt 0:00:00]} 47. Bc4 {[%emt 0:00:01]} Nxa2 {[%emt 0:00:02]} 48. Kg6 {
[%emt 0:00:00]} Nc3 {[%emt 0:00:04]} 49. h4 {[%emt 0:00:01]} Ne2 {[%emt 0:00:
02]} 50. h5 {[%emt 0:00:01]} Nf4+ {[%emt 0:00:01]} 51. Kg5 {[%emt 0:00:01]}
Nh3+ {[%emt 0:00:02]} 52. Kg4 {[%emt 0:00:01]} Nf2+ {[%emt 0:00:01]} 53. Kg3 {
[%emt 0:00:06]} Ne4+ {[%emt 0:00:02]} 54. Kf4 {[%emt 0:00:00]} Nf6 {[%emt 0:00:
04]} 55. h6 {[%emt 0:00:01]} Nh7 {[%emt 0:00:02]} 56. Kf5 {[%emt 0:00:01]} Ke7
{[%emt 0:00:01]} 57. Bg8 {[%emt 0:00:02]} Nf6 {[%emt 0:00:01]} 58. h7 {[%emt 0:
00:01]} Nxh7 {[%emt 0:00:02]} 59. Bxh7 {[%emt 0:00:01]} Kd6 {[%emt 0:00:00]}
60. Kf4 {[%emt 0:00:04]} Kc5 {[%emt 0:00:01]} 61. Ke3 {[%emt 0:00:01]} Kb4 62.
Bc2 {[%emt 0:00:01]} Kc3 {[%emt 0:00:01]} 63. Bd1 {[%emt 0:00:01]} a5 {[%emt 0:
00:00]} 64. Ke2 {[%emt 0:00:01]} 1-0

[Event "Grandmaster Tournament Blitz"]
[Site "Biel/Bienne, Switzerland"]
[Date "2019.07.27"]
[Round "7.3"]
[White "Vidit, Santosh Gujrathi"]
[Black "Cori, Jorge"]
[Result "1-0"]
[ECO "E17"]
[WhiteElo "2694"]
[BlackElo "2558"]
[PlyCount "73"]
[EventDate "2019.??.??"]
[EventType "blitz"]
[TimeControl "3+2"]
[WhiteClock "0:01:02"]
[BlackClock "0:00:06"]

1. d4 {[%emt 0:00:00]} Nf6 {[%emt 0:00:00]} 2. c4 {[%emt 0:00:00]} e6 {[%emt 0:
00:00]} 3. Nf3 {[%emt 0:00:00]} b6 {[%emt 0:00:00]} 4. g3 {[%emt 0:00:00]} Bb7
{[%emt 0:00:00]} 5. Bg2 {[%emt 0:00:00]} Be7 {[%emt 0:00:00]} 6. O-O {[%emt 0:
00:00]} O-O {[%emt 0:00:00]} 7. Re1 {[%emt 0:00:00]} d5 {[%emt 0:00:00]} 8.
cxd5 {[%emt 0:00:00]} exd5 {[%emt 0:00:00]} 9. Nc3 {[%emt 0:00:00]} Nbd7 {
[%emt 0:00:00]} 10. Bf4 {[%emt 0:00:00]} c6 {[%emt 0:00:00]} 11. Qb3 {[%emt 0:
00:00]} Re8 {[%emt 0:00:00]} 12. Rad1 {[%emt 0:00:00]} Nf8 {[%emt 0:00:00]} 13.
e4 {[%emt 0:00:00]} dxe4 {[%emt 0:00:00]} 14. Nxe4 {[%emt 0:00:00]} Nd5 {
[%emt 0:00:00]} 15. Bd2 {[%emt 0:00:00]} Ne6 {[%emt 0:00:00]} 16. h4 {[%emt 0:
00:00]} h6 {[%emt 0:00:00]} 17. Bc3 {[%emt 0:00:00]} a5 {[%emt 0:00:00]} 18. a3
{[%emt 0:00:00]} b5 {[%emt 0:00:00]} 19. Bh3 {[%emt 0:00:00]} Bf8 {[%emt 0:00:
00]} 20. Qc2 {[%emt 0:00:00]} b4 {[%emt 0:00:00]} 21. axb4 {[%emt 0:00:00]}
axb4 {[%emt 0:00:00]} 22. Bd2 {[%emt 0:00:00]} Qb6 {[%emt 0:00:00]} 23. Bxe6 {
[%emt 0:00:00]} Rxe6 {[%emt 0:00:00]} 24. Nc5 {[%emt 0:00:00]} Rxe1+ {[%emt 0:
00:00]} 25. Rxe1 {[%emt 0:00:00]} Rd8 {[%emt 0:00:00]} 26. Ne5 {[%emt 0:00:00]}
Bc8 {[%emt 0:00:00]} 27. Na4 {[%emt 0:00:00]} Qb5 {[%emt 0:00:21]} 28. Qxc6 {
[%emt 0:00:00]} Bd7 {[%emt 0:00:02]} 29. Qxb5 {[%emt 0:00:00]} Bxb5 {[%emt 0:
00:01]} 30. Nc5 {[%emt 0:00:00]} Rc8 {[%emt 0:00:27]} 31. Rc1 {[%emt 0:00:00]}
Bxc5 {[%emt 0:00:09]} 32. dxc5 {[%emt 0:00:00]} Kf8 {[%emt 0:00:01]} 33. c6 {
[%emt 0:00:00]} f6 {[%emt 0:00:10]} 34. Rc5 {[%emt 0:00:00]} Nc7 {[%emt 0:00:
01]} 35. Bxb4 {[%emt 0:00:03]} Kg8 {[%emt 0:00:01]} 36. Nd7 {[%emt 0:00:11]}
Re8 {[%emt 0:00:01]} 37. Ba5 {[%emt 0:00:06]} 1-0

[Event "Grandmaster Tournament Blitz"]
[Site "Biel/Bienne, Switzerland"]
[Date "2019.07.27"]
[Round "8.1"]
[White "Shankland, Sam"]
[Black "Bogner, Sebastian"]
[Result "1-0"]
[ECO "D32"]
[WhiteElo "2660"]
[BlackElo "2584"]
[PlyCount "131"]
[EventDate "2019.??.??"]
[EventType "blitz"]
[TimeControl "3+2"]
[WhiteClock "0:00:49"]
[BlackClock "0:00:12"]

1. Nf3 {[%emt 0:00:00]} d5 {[%emt 0:00:00]} 2. d4 {[%emt 0:00:00]} Nf6 {
[%emt 0:00:00]} 3. c4 {[%emt 0:00:00]} e6 {[%emt 0:00:00]} 4. Nc3 {[%emt 0:00:
00]} c5 {[%emt 0:00:00]} 5. e3 {[%emt 0:00:00]} a6 {[%emt 0:00:00]} 6. cxd5 {
[%emt 0:00:00]} exd5 {[%emt 0:00:00]} 7. Be2 {[%emt 0:00:00]} Nc6 {[%emt 0:00:
00]} 8. O-O {[%emt 0:00:00]} Be6 {[%emt 0:00:00]} 9. Ne5 {[%emt 0:00:00]} Rc8 {
[%emt 0:00:00]} 10. Bf3 {[%emt 0:00:00]} Be7 {[%emt 0:00:00]} 11. Nxc6 {
[%emt 0:00:00]} Rxc6 {[%emt 0:00:00]} 12. dxc5 {[%emt 0:00:00]} Rxc5 {[%emt 0:
00:00]} 13. Ne2 {[%emt 0:00:00]} O-O {[%emt 0:00:00]} 14. b3 {[%emt 0:00:00]}
Ne4 {[%emt 0:00:00]} 15. Bb2 {[%emt 0:00:00]} Bf6 {[%emt 0:00:00]} 16. Bd4 {
[%emt 0:00:00]} Rc6 {[%emt 0:00:00]} 17. Rc1 {[%emt 0:00:00]} Rxc1 {[%emt 0:00:
00]} 18. Qxc1 {[%emt 0:00:00]} Ng5 {[%emt 0:00:00]} 19. Qb2 {[%emt 0:00:00]}
Nxf3+ {[%emt 0:00:00]} 20. gxf3 {[%emt 0:00:00]} Bxd4 {[%emt 0:00:00]} 21. Qxd4
{[%emt 0:00:00]} Qg5+ {[%emt 0:00:00]} 22. Kh1 {[%emt 0:00:00]} Rc8 {[%emt 0:
00:00]} 23. Rg1 {[%emt 0:00:00]} Qh6 {[%emt 0:00:00]} 24. Nf4 {[%emt 0:00:00]}
Kh8 {[%emt 0:00:00]} 25. Qe5 {[%emt 0:00:00]} Qf6 {[%emt 0:00:00]} 26. Qxf6 {
[%emt 0:00:00]} gxf6 {[%emt 0:00:00]} 27. Nh5 {[%emt 0:00:00]} d4 {[%emt 0:00:
16]} 28. Nxf6 {[%emt 0:00:00]} d3 {[%emt 0:00:10]} 29. Rd1 {[%emt 0:00:05]} Bh3
{[%emt 0:00:01]} 30. Ne4 {[%emt 0:00:00]} Rg8 {[%emt 0:00:17]} 31. Ng3 {
[%emt 0:00:00]} Rc8 {[%emt 0:00:01]} 32. Ne4 {[%emt 0:00:00]} Rg8 {[%emt 0:00:
00]} 33. Rxd3 {[%emt 0:00:21]} Bg2+ {[%emt 0:00:01]} 34. Kg1 {[%emt 0:00:01]}
Bxf3+ {[%emt 0:00:02]} 35. Ng3 {[%emt 0:00:00]} Rc8 {[%emt 0:00:02]} 36. h3 {
[%emt 0:00:06]} h5 {[%emt 0:00:10]} 37. e4 {[%emt 0:00:07]} Rc1+ {[%emt 0:00:
06]} 38. Kh2 {[%emt 0:00:01]} Bd1 {[%emt 0:00:07]} 39. h4 {[%emt 0:00:03]} Bg4
{[%emt 0:00:01]} 40. f3 {[%emt 0:00:02]} Rc2+ {[%emt 0:00:01]} 41. Kg1 {
[%emt 0:00:02]} Bh3 {[%emt 0:00:03]} 42. Nxh5 {[%emt 0:00:01]} Rxa2 {[%emt 0:
00:02]} 43. Nf4 {[%emt 0:00:02]} Be6 {[%emt 0:00:05]} 44. Nxe6 {[%emt 0:00:01]}
fxe6 {[%emt 0:00:01]} 45. Rd6 {[%emt 0:00:02]} e5 {[%emt 0:00:04]} 46. Rb6 {
[%emt 0:00:04]} Kg7 {[%emt 0:00:02]} 47. h5 {[%emt 0:00:02]} Rb2 {[%emt 0:00:
02]} 48. b4 {[%emt 0:00:02]} Kh7 {[%emt 0:00:03]} 49. h6 {[%emt 0:00:01]} Rc2 {
[%emt 0:00:04]} 50. Rxb7+ {[%emt 0:00:03]} Kxh6 {[%emt 0:00:01]} 51. Re7 {
[%emt 0:00:01]} Kg5 {[%emt 0:00:02]} 52. Rxe5+ {[%emt 0:00:01]} Kf4 {[%emt 0:
00:00]} 53. Rf5+ {[%emt 0:00:01]} Kg3 {[%emt 0:00:01]} 54. Kf1 {[%emt 0:00:01]}
Rb2 {[%emt 0:00:01]} 55. e5 {[%emt 0:00:02]} Rxb4 {[%emt 0:00:02]} 56. Ke2 {
[%emt 0:00:02]} Rb6 {[%emt 0:00:07]} 57. Ke3 {[%emt 0:00:02]} a5 {[%emt 0:00:
02]} 58. Rg5+ {[%emt 0:00:02]} Kh4 {[%emt 0:00:01]} 59. Rg8 {[%emt 0:00:02]}
Ra6 {[%emt 0:00:02]} 60. Kf4 {[%emt 0:00:01]} Kh5 {[%emt 0:00:01]} 61. Kf5 {
[%emt 0:00:01]} Kh6 {[%emt 0:00:01]} 62. e6 {[%emt 0:00:01]} a4 {[%emt 0:00:01]
} 63. e7 {[%emt 0:00:02]} Ra5+ {[%emt 0:00:02]} 64. Kf6 {[%emt 0:00:01]} Ra6+ {
[%emt 0:00:00]} 65. Kf5 {[%emt 0:00:03]} Ra5+ {[%emt 0:00:01]} 66. Ke4 {
[%emt 0:00:06]} 1-0

[Event "Grandmaster Tournament Blitz"]
[Site "Biel/Bienne, Switzerland"]
[Date "2019.07.27"]
[Round "8.2"]
[White "Leko, Peter"]
[Black "Cori, Jorge"]
[Result "0-1"]
[ECO "C11"]
[WhiteElo "2743"]
[BlackElo "2558"]
[PlyCount "112"]
[EventDate "2019.??.??"]
[EventType "blitz"]
[TimeControl "3+2"]
[WhiteClock "0:00:07"]
[BlackClock "0:00:06"]

1. e4 {[%emt 0:00:00]} e6 {[%emt 0:00:00]} 2. d4 {[%emt 0:00:00]} d5 {[%emt 0:
00:00]} 3. Nc3 {[%emt 0:00:00]} Nf6 {[%emt 0:00:00]} 4. e5 {[%emt 0:00:00]}
Nfd7 {[%emt 0:00:00]} 5. f4 {[%emt 0:00:00]} c5 {[%emt 0:00:00]} 6. Nf3 {
[%emt 0:00:00]} Nc6 {[%emt 0:00:00]} 7. Be3 {[%emt 0:00:00]} Be7 {[%emt 0:00:
00]} 8. Qd2 {[%emt 0:00:00]} O-O {[%emt 0:00:00]} 9. dxc5 {[%emt 0:00:00]} Nxc5
{[%emt 0:00:00]} 10. Be2 {[%emt 0:00:00]} a6 {[%emt 0:00:00]} 11. O-O {[%emt 0:
00:00]} b5 {[%emt 0:00:00]} 12. a3 {[%emt 0:00:00]} Qc7 {[%emt 0:00:00]} 13.
Nd4 {[%emt 0:00:00]} Rd8 {[%emt 0:00:00]} 14. Nxc6 {[%emt 0:00:00]} Qxc6 {
[%emt 0:00:00]} 15. Bd4 {[%emt 0:00:00]} Ne4 {[%emt 0:00:00]} 16. Qe3 {[%emt 0:
00:00]} Bb7 {[%emt 0:00:00]} 17. Nxe4 {[%emt 0:00:00]} dxe4 {[%emt 0:00:00]}
18. c3 {[%emt 0:00:00]} g6 {[%emt 0:00:00]} 19. Rfd1 {[%emt 0:00:00]} a5 {
[%emt 0:00:00]} 20. b4 {[%emt 0:00:00]} Rdc8 {[%emt 0:00:00]} 21. Bf1 {[%emt 0:
00:00]} axb4 {[%emt 0:00:04]} 22. axb4 {[%emt 0:00:00]} Qe8 {[%emt 0:00:15]}
23. Qe2 {[%emt 0:00:00]} Bc6 {[%emt 0:00:01]} 24. g3 {[%emt 0:00:00]} Rxa1 {
[%emt 0:00:01]} 25. Rxa1 {[%emt 0:00:00]} Ra8 {[%emt 0:00:01]} 26. Qe1 {
[%emt 0:00:00]} Rxa1 {[%emt 0:00:08]} 27. Qxa1 {[%emt 0:00:00]} Qd7 {[%emt 0:
00:01]} 28. Qa7 {[%emt 0:00:00]} Qe8 {[%emt 0:00:25]} 29. Kf2 {[%emt 0:00:00]}
g5 {[%emt 0:00:02]} 30. Ke3 {[%emt 0:00:24]} gxf4+ {[%emt 0:00:00]} 31. gxf4 {
[%emt 0:00:01]} Bh4 {[%emt 0:00:02]} 32. Bg2 {[%emt 0:00:11]} Bd5 {[%emt 0:00:
01]} 33. Bf1 {[%emt 0:00:09]} Bc6 {[%emt 0:00:02]} 34. Qc7 {[%emt 0:00:07]} Qa8
{[%emt 0:00:02]} 35. Qa7 {[%emt 0:00:01]} Qe8 {[%emt 0:00:00]} 36. Be2 {
[%emt 0:00:07]} Kh8 {[%emt 0:00:04]} 37. Kd2 {[%emt 0:00:04]} Kg7 {[%emt 0:00:
03]} 38. Kc2 {[%emt 0:00:02]} Kg6 {[%emt 0:00:01]} 39. Bg4 {[%emt 0:00:05]} h5
{[%emt 0:00:01]} 40. Be2 {[%emt 0:00:01]} Bd5 {[%emt 0:00:03]} 41. Qa6 {
[%emt 0:00:03]} Kf5 {[%emt 0:00:09]} 42. Be3 {[%emt 0:00:02]} Qg8 {[%emt 0:00:
03]} 43. Qxb5 {[%emt 0:00:08]} Qg2 {[%emt 0:00:01]} 44. Kd2 {[%emt 0:00:03]}
Bf2 {[%emt 0:00:01]} 45. Qc5 {[%emt 0:00:01]} Bxe3+ 46. Qxe3 {[%emt 0:00:01]}
Qxh2 {[%emt 0:00:01]} 47. b5 {[%emt 0:00:03]} h4 {[%emt 0:00:01]} 48. b6 {
[%emt 0:00:01]} h3 {[%emt 0:00:01]} 49. c4 {[%emt 0:00:01]} Bc6 {[%emt 0:00:02]
} 50. Kc3 {[%emt 0:00:08]} Qg2 {[%emt 0:00:01]} 51. Qc5 {[%emt 0:00:02]} Qxe2 {
[%emt 0:00:02]} 52. Qxc6 {[%emt 0:00:02]} h2 {[%emt 0:00:01]} 53. Qd7 {[%emt 0:
00:02]} h1=Q {[%emt 0:00:09]} 54. Qxf7+ {[%emt 0:00:01]} Kg4 {[%emt 0:00:02]}
55. Qxe6+ {[%emt 0:00:01]} Kf3 {[%emt 0:00:01]} 56. Kb4 {[%emt 0:00:02]} Qb1+ {
[%emt 0:00:02]} 0-1

[Event "Grandmaster Tournament Blitz"]
[Site "Biel/Bienne, Switzerland"]
[Date "2019.07.27"]
[Round "8.3"]
[White "Vidit, Santosh Gujrathi"]
[Black "Georgiadis, Nico"]
[Result "1-0"]
[ECO "D31"]
[WhiteElo "2694"]
[BlackElo "2464"]
[PlyCount "95"]
[EventDate "2019.??.??"]
[EventType "blitz"]
[TimeControl "3+2"]
[WhiteClock "0:01:05"]
[BlackClock "0:00:07"]

1. d4 {[%emt 0:00:00]} d5 {[%emt 0:00:00]} 2. c4 {[%emt 0:00:00]} e6 {[%emt 0:
00:00]} 3. Nc3 {[%emt 0:00:00]} Bb4 {[%emt 0:00:00]} 4. cxd5 {[%emt 0:00:00]}
exd5 {[%emt 0:00:00]} 5. Bf4 {[%emt 0:00:00]} Ne7 {[%emt 0:00:00]} 6. e3 {
[%emt 0:00:00]} O-O {[%emt 0:00:00]} 7. Bd3 {[%emt 0:00:00]} Bd6 {[%emt 0:00:
00]} 8. Nge2 {[%emt 0:00:00]} c6 {[%emt 0:00:00]} 9. Qc2 {[%emt 0:00:00]} h6 {
[%emt 0:00:00]} 10. O-O {[%emt 0:00:00]} Bxf4 {[%emt 0:00:00]} 11. Nxf4 {
[%emt 0:00:00]} Nd7 {[%emt 0:00:00]} 12. Rad1 {[%emt 0:00:00]} Nf6 {[%emt 0:00:
00]} 13. f3 {[%emt 0:00:00]} Re8 {[%emt 0:00:00]} 14. h3 {[%emt 0:00:00]} b6 {
[%emt 0:00:00]} 15. Qf2 {[%emt 0:00:00]} c5 {[%emt 0:00:00]} 16. dxc5 {[%emt 0:
00:00]} bxc5 {[%emt 0:00:00]} 17. Bb5 {[%emt 0:00:00]} Bd7 {[%emt 0:00:00]} 18.
Bxd7 {[%emt 0:00:00]} Qxd7 {[%emt 0:00:00]} 19. Ncxd5 {[%emt 0:00:00]} Nexd5 {
[%emt 0:00:00]} 20. Nxd5 {[%emt 0:00:00]} Nxd5 {[%emt 0:00:00]} 21. e4 {
[%emt 0:00:00]} Re5 {[%emt 0:00:00]} 22. Qxc5 {[%emt 0:00:00]} Rd8 {[%emt 0:00:
00]} 23. Rxd5 {[%emt 0:00:00]} Rxd5 {[%emt 0:00:00]} 24. exd5 {[%emt 0:00:00]}
Qxd5 {[%emt 0:00:10]} 25. Qxd5 {[%emt 0:00:00]} Rxd5 {[%emt 0:00:01]} 26. Rf2 {
[%emt 0:00:00]} Rd1+ {[%emt 0:00:05]} 27. Kh2 {[%emt 0:00:00]} h5 {[%emt 0:00:
14]} 28. h4 {[%emt 0:00:00]} g6 {[%emt 0:00:02]} 29. Rc2 {[%emt 0:00:00]} Rb1 {
[%emt 0:00:02]} 30. b3 {[%emt 0:00:00]} Ra1 {[%emt 0:00:04]} 31. Kg3 {[%emt 0:
00:00]} Kg7 {[%emt 0:00:01]} 32. Kf4 {[%emt 0:00:00]} a5 {[%emt 0:00:14]} 33.
Ke5 {[%emt 0:00:00]} Re1+ {[%emt 0:00:04]} 34. Kf4 {[%emt 0:00:00]} Ra1 {
[%emt 0:00:01]} 35. Ke3 {[%emt 0:00:00]} Kf6 {[%emt 0:00:02]} 36. Kf4 {[%emt 0:
00:09]} Ke6 {[%emt 0:00:08]} 37. Kg5 {[%emt 0:00:04]} Rg1 {[%emt 0:00:04]} 38.
Re2+ {[%emt 0:00:02]} Kd5 {[%emt 0:00:05]} 39. Kf6 {[%emt 0:00:01]} Kd4 {
[%emt 0:00:02]} 40. Kxf7 {[%emt 0:00:05]} Kd3 {[%emt 0:00:00]} 41. Rb2 {
[%emt 0:00:01]} Kc3 {[%emt 0:00:02]} 42. Rf2 {[%emt 0:00:01]} Rb1 {[%emt 0:00:
05]} 43. Kxg6 {[%emt 0:00:04]} Rb2 {[%emt 0:00:04]} 44. Rxb2 {[%emt 0:00:06]}
Kxb2 {[%emt 0:00:00]} 45. Kxh5 {[%emt 0:00:03]} Kxa2 {[%emt 0:00:01]} 46. g4 {
[%emt 0:00:01]} Kxb3 {[%emt 0:00:02]} 47. g5 {[%emt 0:00:01]} a4 {[%emt 0:00:
02]} 48. g6 {[%emt 0:00:01]} 1-0

[Event "Grandmaster Tournament Blitz"]
[Site "Biel/Bienne, Switzerland"]
[Date "2019.07.27"]
[Round "8.4"]
[White "Maghsoodloo, Parham"]
[Black "Abdusattorov, Nodirbek"]
[Result "1-0"]
[ECO "A48"]
[WhiteElo "2719"]
[BlackElo "2550"]
[PlyCount "105"]
[EventDate "2019.??.??"]
[EventType "blitz"]
[TimeControl "3+2"]
[WhiteClock "0:00:53"]
[BlackClock "0:00:05"]

1. d4 {[%emt 0:00:00]} d6 {[%emt 0:00:00]} 2. Nf3 {[%emt 0:00:00]} g6 {[%emt 0:
00:00]} 3. Bg5 {[%emt 0:00:00]} Bg7 {[%emt 0:00:00]} 4. c3 {[%emt 0:00:00]} Nf6
{[%emt 0:00:00]} 5. Nbd2 {[%emt 0:00:00]} O-O {[%emt 0:00:00]} 6. e4 {[%emt 0:
00:00]} h6 {[%emt 0:00:00]} 7. Bf4 {[%emt 0:00:00]} Nc6 {[%emt 0:00:00]} 8. h3
{[%emt 0:00:00]} e5 {[%emt 0:00:00]} 9. dxe5 {[%emt 0:00:00]} Nh5 {[%emt 0:00:
00]} 10. Be3 {[%emt 0:00:00]} dxe5 {[%emt 0:00:00]} 11. Bc4 {[%emt 0:00:00]}
Nf4 {[%emt 0:00:00]} 12. O-O {[%emt 0:00:00]} Qf6 {[%emt 0:00:00]} 13. Re1 {
[%emt 0:00:00]} Be6 {[%emt 0:00:00]} 14. Bxf4 {[%emt 0:00:00]} exf4 {[%emt 0:
00:00]} 15. Bxe6 {[%emt 0:00:00]} Qxe6 {[%emt 0:00:00]} 16. Qb3 {[%emt 0:00:00]
} Qxb3 {[%emt 0:00:00]} 17. axb3 {[%emt 0:00:00]} Rad8 {[%emt 0:00:00]} 18. b4
{[%emt 0:00:00]} a6 {[%emt 0:00:00]} 19. Nb3 {[%emt 0:00:00]} b6 {[%emt 0:00:
00]} 20. Rxa6 {[%emt 0:00:00]} Rfe8 {[%emt 0:00:00]} 21. Raa1 {[%emt 0:00:00]}
g5 {[%emt 0:00:00]} 22. Kf1 {[%emt 0:00:00]} Re7 {[%emt 0:00:00]} 23. b5 {
[%emt 0:00:00]} Ne5 {[%emt 0:00:00]} 24. Nxe5 {[%emt 0:00:00]} Bxe5 {[%emt 0:
00:00]} 25. Red1 {[%emt 0:00:00]} Rxd1+ {[%emt 0:00:00]} 26. Rxd1 {[%emt 0:00:
00]} h5 {[%emt 0:00:00]} 27. f3 {[%emt 0:00:00]} Kg7 {[%emt 0:00:00]} 28. Nd4 {
[%emt 0:00:00]} Re8 {[%emt 0:00:02]} 29. Nc6 {[%emt 0:00:00]} Bd6 {[%emt 0:00:
06]} 30. Ke2 {[%emt 0:00:00]} Ra8 {[%emt 0:00:03]} 31. Kd3 {[%emt 0:00:00]} g4
{[%emt 0:00:04]} 32. hxg4 {[%emt 0:00:00]} hxg4 {[%emt 0:00:01]} 33. e5 {
[%emt 0:00:00]} Bc5 {[%emt 0:00:07]} 34. Ke4 {[%emt 0:00:00]} Ra2 {[%emt 0:00:
07]} 35. Rb1 {[%emt 0:00:00]} Ra4+ {[%emt 0:00:04]} 36. b4 {[%emt 0:00:00]} Bf2
{[%emt 0:00:08]} 37. Ne7 {[%emt 0:00:00]} Ra2 {[%emt 0:00:05]} 38. Kxf4 {
[%emt 0:00:09]} gxf3 {[%emt 0:00:06]} 39. gxf3 {[%emt 0:00:02]} Kf8 {[%emt 0:
00:11]} 40. Nd5 {[%emt 0:00:02]} Rc2 {[%emt 0:00:04]} 41. Rd1 {[%emt 0:00:05]}
Kg7 {[%emt 0:00:04]} 42. Rd3 {[%emt 0:00:02]} Be1 {[%emt 0:00:00]} 43. Ke4 {
[%emt 0:00:05]} Bd2 {[%emt 0:00:07]} 44. f4 {[%emt 0:00:01]} Be1 {[%emt 0:00:
02]} 45. Re3 {[%emt 0:00:08]} Bf2 {[%emt 0:00:03]} 46. Rf3 {[%emt 0:00:03]} Be1
{[%emt 0:00:01]} 47. Kd3 {[%emt 0:00:02]} Rd2+ {[%emt 0:00:03]} 48. Kc4 {
[%emt 0:00:01]} Kg6 {[%emt 0:00:04]} 49. f5+ {[%emt 0:00:02]} Kg7 {[%emt 0:00:
04]} 50. Re3 {[%emt 0:00:13]} Bf2 {[%emt 0:00:02]} 51. Re4 {[%emt 0:00:02]} Kf8
{[%emt 0:00:08]} 52. e6 {[%emt 0:00:03]} fxe6 {[%emt 0:00:01]} 53. fxe6 {
[%emt 0:00:01]} 1-0